Cogmind - Beta 9.6 @@@ ROGUE MODE // 2020.08.26 @ 21:42:27 Player: Cracklepappy Result: Destroyed by D-53 Grenadier with Mini Grenade Launcher Performance ------------- Evolutions (0) 0 Regions Visited (2) 400 Robots Destroyed (25) 125 Value Destroyed (443) 443 Prototype IDs (2) 40 Alien Tech Used (0) 0 Bonus (0) 0 TOTAL SCORE: 1008 Bonus ------- None Cogmind --------- Core Integrity 0/250 Matter 123/300 Energy 99/100 System Corruption 3% Temperature Cool (0) Movement Core (50) Location -10/Mines Parts ------- > --- POWER (1) -------- (None) > --- PROPULSION (2) --- (None) > --- UTILITY (2) ------ (None) > --- WEAPON (2) ------- (None) > --- INVENTORY (4) ---- Medium Storage Unit Medium Storage Unit Light Armor Plating Mining Laser Peak State ------------ > --- POWER ------------ Improved Ion Engine > --- PROPULSION ------- Light Treads Compact Wheel > --- UTILITY ---------- Medium Storage Unit Medium Storage Unit > --- WEAPON ----------- Light Assault Rifle Grenade Launcher > --- INVENTORY -------- Improved Ion Engine Improved Ion Engine Light Treads Light Treads Small Storage Unit Medium Storage Unit Propulsion Shielding Assault Rifle [Rating: 9] Favorites ----------- Power Improved Ion Engine Engine Improved Ion Engine Propulsion Compact Wheel Treads Light Treads Wheel Compact Wheel Utility Medium Storage Unit Device Improved Terrain Scanner Storage Medium Storage Unit Protection Propulsion Shielding Weapon Light Assault Rifle Energy Gun EM Pulse Gun Ballistic Gun Light Assault Rifle Launcher Grenade Launcher Build | -11 -10 -10 ------- Run | Scr Mat Min Slots Evolved . | . . . Power . | . . . Propulsion . | . . . Utility . | . . . Weapon . | . . . Parts Attached 17 | 7 9 1 Power 2 | 1 1 . Engine 2 | 1 1 . Core . | . . . Reactor . | . . . Propulsion 4 | 2 2 . Treads 1 | . 1 . Leg . | . . . Wheel 3 | 2 1 . Hover . | . . . Flight . | . . . Utility 5 | 2 3 . Device 1 | 1 . . Storage 3 | 1 2 . Processor . | . . . Hackware . | . . . Protection 1 | . 1 . Artifact . | . . . Weapon 6 | 2 3 1 Energy Gun 1 | . . 1 Energy Cannon . | . . . Ballistic Gun 3 | 2 1 . Ballistic Cannon . | . . . Launcher 2 | . 2 . Special Weapon . | . . . Impact Weapon . | . . . Slashing Weapon . | . . . Piercing Weapon . | . . . Special Melee Weapon . | . . . Unidentified Prototypes . | . . . Parts Lost 5 | . 2 3 Power 1 | . . 1 Propulsion 2 | . 2 . Utility . | . . . Weapon 2 | . . 2 Highest Loss Streak 3 | . 1 3 Average Slot Usage (%) 92 | . 98 71 Engine 13 | . 14 9 Treads 5 | . 4 10 Wheel 19 | . 21 10 Storage 18 | . 18 20 Protection 7 | . 9 . Ballistic Gun 18 | . 20 10 Launcher 7 | . 7 9 Naked Turns 35 | . . 35 Heaviest Build 27 | 13 27 27 Greatest Support 32 | 26 32 16 Greatest Overweight (x) 1 | . 1 1 Average Overweight (x) . | . . . Largest Inventory Capacity 12 | 6 12 12 Average Capacity 7 | 5 7 10 Most Carried 12 | 6 12 12 Average Carried 7 | 3 7 10 Final Capacity 12 | 6 12 4 Final Carried 12 | 6 12 4 Class Distribution -------------------- 100% | Mutant Dominant Class ---------------- Mutant | -10/Materials Mutant | -10/Mines Resources | -11 -10 -10 ----------- Run | Scr Mat Min Matter Collected 492 | 304 157 31 Remotely . | . . . Salvage Created 552 | 104 356 92 Parts 34 | 4 21 9 Haulers Intercepted 1 | . 1 . Recyclers Shooed 3 | . 3 . Parts Field Recycled . | . . . Retrieved Matter . | . . . Parts Self-Destructed . | . . . Prevented . | . . . Kills | -11 -10 -10 ------- Run | Scr Mat Min Combat Hostiles Destroyed 16 | . 10 6 Guns 5 | . 4 1 AOE 11 | . 6 5 Classes Destroyed 7 | 2 4 1 Tunneler 3 | 1 . 2 Hauler 1 | . 1 . Recycler 3 | 1 2 . Watcher 2 | . 2 . Swarmer 9 | . 6 3 Grunt 6 | . 4 2 Assembled 1 | . . 1 Best Kill Streak 7 | 1 7 6 Combat Bots Only 6 | . 6 3 Max Kills in Single Turn 3 | 1 3 2 Gunslinging . | . . . Exploded 2 | . 2 2 Melee . | . . . Uniques/NPCs Destroyed . | . . . Combat | -11 -10 -10 -------- Run | Scr Mat Min Damage Taken 852 | . 352 500 Core 261 | . 53 208 Absorbed by Shields . | . . . Core Remaining (%) 100 | 100 . . Volleys Fired 56 | 10 36 10 Largest 2 | 2 2 1 Hottest 40 | 40 40 40 Shots Fired 92 | 20 62 10 Gun 74 | 20 52 2 Cannon . | . . . Launcher 18 | . 10 8 Special . | . . . Kinetic 72 | 20 52 . Thermal . | . . . Explosive 18 | . 10 8 Electromagnetic 2 | . . 2 Robot Hit Streak 11 | 4 11 3 Robot Miss Streak 4 | 4 1 1 Penetration Max . | . . . Secondary Targets 1 | . 1 . Max Gunslinging Chain 1 | . 1 . Shots Hit Robots 61 | 11 44 6 Core Hits 45 | 3 27 15 Critical Hits 1 | 1 . . Critical Kills . | . . . Critical Parts Destroyed 1 | 1 . . Melee Attacks . | . . . Impact . | . . . Slashing . | . . . Piercing . | . . . Sneak Attacks . | . . . Combat Hostiles . | . . . Follow-up Attacks . | . . . Damage Inflicted 1952 | 143 1314 495 Guns 539 | 143 375 21 Cannons . | . . . Explosions 1413 | . 939 474 Melee . | . . . Ramming . | . . . Kinetic 518 | 143 375 . Thermal 80 | . 80 . Explosive 1333 | . 859 474 Electromagnetic 21 | . . 21 Impact . | . . . Slashing . | . . . Piercing . | . . . Highest Corruption 3 | . . 3 Average Corruption 3 | . . 3 Corruption Purged . | . . . Overload Shots . | . . . Overflow Damage 49 | . 46 3 Projectiles . | . . . Explosions 49 | . 46 3 Melee . | . . . Knockbacks . | . . . Impact . | . . . Kinetic . | . . . Secondary . | . . . Self-Inflicted Damage 57 | . 47 10 Shots 2 | . 1 1 Rammed . | . . . Targets Rammed . | . . . Kicked . | . . . Crushed . | . . . Highest Temperature 24 | . 24 20 Average Temperature 6 | . 6 8 Received Heat Transfer 225 | . 150 75 Siege Activations . | . . . Robots Corrupted . | . . . Combat Hostiles . | . . . Parts Fried . | . . . Impact Corruptions . | . . . Robots Melted . | . . . Combat Hostiles . | . . . Parts Melted . | . . . Heat Transferred 50 | . 50 . Parts Sabotaged . | . . . Parts Stolen . | . . . Parts Stripped . | . . . Power Chain Reactions . | . . . Missiles Intercepted . | . . . Alert | -11 -10 -10 ------- Run | Scr Mat Min Peak Influence 210 | 10 210 160 Average Influence 43 | 3 44 82 Maximum Alert Level 1 | . 1 . Low Security (%) 98 | 100 98 100 Level 1 1 | . 1 . Level 2 . | . . . Level 3 . | . . . Level 4 . | . . . Level 5 . | . . . High Security . | . . . Max Security . | . . . Squads Dispatched 3 | . 3 . Investigation 1 | . 1 . Extermination . | . . . Reinforcement 2 | . 2 . Assault . | . . . Garrison . | . . . Intercept . | . . . Construction Impeded . | . . . Haulers Reinforced . | . . . Stealth | -11 -10 -10 --------- Run | Scr Mat Min Distress Signals . | . . . Communications Jammed . | . . . Distress Signals . | . . . Times Spotted 39 | . 16 23 Peak Tracking Total 16 | . 3 16 Tactical Retreats . | . . . Traps | -11 -10 -10 ------- Run | Scr Mat Min Traps Triggered 1 | . 1 . Indirectly . | . . . Trap Hack Attempts . | . . . Triggered . | . . . Disarmed . | . . . Reprogrammed . | . . . Reused . | . . . Traps Extracted . | . . . Installed . | . . . Triggered . | . . . Machines | -11 -10 -10 ---------- Run | Scr Mat Min Machines Disabled 5 | . 5 . Max in Single Turn 3 | . 3 . Machines Sabotaged . | . . . Garrisons Compromised . | . . . Overloaded Fab Kills . | . . . Fab Network Shutdowns . | . . . Hacking | -11 -10 -10 --------- Run | Scr Mat Min Machines Accessed 6 | . 6 . Terminals 6 | . 6 . Fabricators . | . . . Repair Stations . | . . . Recycling Units . | . . . Scanalyzers . | . . . Garrison Access . | . . . Total Hacks 14 | . 14 . Successful 9 | . 9 . Failed 5 | . 5 . Catastrophic 2 | . 2 . Database Lockouts . | . . . Manual 3 | . 3 . Terminals 14 | . 14 . Fabricators . | . . . Repair Stations . | . . . Recycling Units . | . . . Scanalyzers . | . . . Garrison Access . | . . . Terminal Hacks 9 | . 9 . Part Schematic 1 | . 1 . Prototype ID Bank 1 | . 1 . Unreport Threat 2 | . 2 . Locate Traps 1 | . 1 . Zone Layout 4 | . 4 . Fabricator Hacks . | . . . Repair Station Hacks . | . . . Recycling Unit Hacks . | . . . Scanalyzer . | . . . Garrison Access Hacks . | . . . Unauthorized Hacks . | . . . Terminals . | . . . Fabricators . | . . . Repair Stations . | . . . Recycling Units . | . . . Scanalyzers . | . . . Garrison Access . | . . . Data Cores Recovered . | . . . Used . | . . . Hacking Detections 5 | . 5 . Full Trace Events . | . . . Feedback Events . | . . . Feedback Blocked . | . . . Robot Schematics Acquired . | . . . Robots Built . | . . . Matter . | . . . Time . | . . . Total Robot Build Rating . | . . . Part Schematics Acquired 1 | . 1 . Parts Built . | . . . Matter . | . . . Time . | . . . Total Part Build Rating . | . . . Parts Repaired . | . . . Time . | . . . Parts Recycled . | . . . Recycled Matter . | . . . Retrieved Matter . | . . . Retrieved Components . | . . . Parts Scanalyzed . | . . . Part Schematics Acquired . | . . . Parts Damaged . | . . . Bothacking | -11 -10 -10 ------------ Run | Scr Mat Min Used RIF Installer . | . . . Robots Hacked . | . . . Non-combat . | . . . Combat . | . . . Robot Hacks Applied . | . . . Relay Couplers Released . | . . . Robots Rewired . | . . . Allies Hacked . | . . . Hacks Repelled . | . . . Allies | -11 -10 -10 -------- Run | Scr Mat Min Total Allies . | . . . Largest Group . | . . . Highest-Rated Group . | . . . Highest-Rated Ally . | . . . Total Orders . | . . . Ally Attacks . | . . . Total Damage . | . . . Kills . | . . . Allies Corrupted . | . . . Allies Melted . | . . . Intel | -11 -10 -10 ------- Run | Scr Mat Min Robot Analysis Total . | . . . Derelict Logs Recovered . | . . . Drone Launches . | . . . Drone Recoveries . | . . . Exploration | -11 -10 -10 ------------- Run | Scr Mat Min Turns Passed 919 | 150 622 147 Spaces Moved 704 | 112 457 135 Core 58 | 5 . 53 Treads . | . . . Legs . | . . . Wheels 646 | 107 457 82 Hover . | . . . Flight . | . . . Fastest Speed 50 | 50 90 50 Average Speed 95 | 88 100 86 Slowest Speed 110 | 90 110 110 Overloaded Moves . | . . . Propulsion Burnouts . | . . . Robots Hopped . | . . . Cave-ins Triggered . | . . . Exploration Rate (%) 39 | 6 85 26 Regions Visited 2 Branch Regions 1 Pre-discovered Areas . | . . . Known Exits Taken . | . . . Unknown Exits Taken 2 | 1 1 . Scrap Searched 1 | . . 1 Spaces Dug . | . . . Terrain Destroyed 148 | . 78 70 Melee . | . . . Projectile . | . . . AOE 148 | . 78 70 Actions | -11 -10 -10 --------- Run | Scr Mat Min Total 866 | 142 569 155 Wait 59 | 7 43 9 Move 702 | 111 456 135 Hop . | . . . Pick Up 21 | 7 14 . Fast Attach 9 | 6 3 . Attach 3 | 1 1 1 Detach . | . . . Swap 5 | . 5 . Drop 11 | . 11 . Fire 56 | 10 36 10 Melee . | . . . Ram . | . . . Kick . | . . . Crush . | . . . Escape Stasis . | . . . Rewire . | . . . Trap . | . . . Miscellaneous . | . . . Route ------- -11/Scrapyard -10/Materials (discovered 5 exits: [*Mat x3] / [*Min x2]) -10/Mines History --------- Turn | Location | Event 5 | -11/Scrapyard | Discovered new exit (range 16) 151 | -11/Scrapyard | Entered Materials 254 | -10/Materials | Discovered new exit (range 13) 320 | -10/Materials | Build established: Mutant 406 | -10/Materials | Discovered new exit (range 11) 556 | -10/Materials | Discovered new exit (range 10) 677 | -10/Materials | Discovered new exit (range 9) 714 | -10/Materials | Discovered new exit (range 15) 773 | -10/Materials | Entered Mines 870 | -10/Mines | Assembled infested the area 885 | -10/Mines | Released all parts (5) 888 | -10/Mines | Core integrity fell below 50% 907 | -10/Mines | Core integrity fell below 20% 915 | -10/Mines | Lost 3 parts (1p2w) 920 | -10/Mines | Destroyed by D-53 Grenadier with Mini Grenade Launcher Last Messages --------------- 00887_ U-05 Engineer destroyed. 00889_ as-43068 destroyed. 00889_ as-26743 destroyed. 00889_ as-08267 destroyed. 00907_ The unstable cave ceiling collapses. 00907_ Lgt. Ion Engine crushed. 00910_ U-05 Engineer lays Concrete. 00912_ The unstable cave ceiling collapses. 00912_ U-05 Engineer lays Concrete. 00913_ The unstable cave ceiling collapses. 00913_ U-05 Engineer lays Concrete. 00915_ The unstable cave ceiling collapses. 00915_ Lgt. Assault Rifle crushed. 00915_ R-06 Scavenger collects Lgt. Treads. 00915_ U-05 Engineer lays Concrete. 00916_ The unstable cave ceiling collapses. 00916_ U-05 Engineer lays Concrete. 00917_ R-06 Scavenger collects Imp. Ion Engine. 00919_ K-01 Serf collects debris. 00919_ U-05 Engineer lays Concrete. Map ----- +----------------------------------------------------+ | ??????????# #???????????????????????????????????? | | ??????????# #???????????????????????????????????? | | ??????????# #???????????????????????????????????? | | ??????????# #???????????????????????????????????? | | ?????????## #???????????????????????????????????? | | ?????????# #???????????????????????????????????? | | ?????????# #???????????????????????????????????? | | ?????????# #???????????????????????????????????? | | ?????????# [##????????####??####?????????????????? | | ?????????#! ########### #### #####?????????????? | | ?????????# ! # # ##????#???????? | | ?????????# ## # k ### #???????? | | ?????????# ## * ## = " ###?????? | | ???????### ## % % % %" ???? | | ??????## ## ### # " """ ????? | | ??????# ### ### = ""???????? | | ??????# #### # ?# # ?# ""???????? | | ??????# ########## ##??## ???????? | | ??????# ##?????# = ! #?????? ?????? | | ??????## #???### *= #??????? ?????? | | ???????## ##### #!! #???????? ??????? | | ????????## ## * #????????????????? | | ?????????### %|%= ##??????????????????? | | ???????????## ## ##???????????????????? | | ???????????## ## d #????????????????????? | | ????######## ## [@ #????????????????????? | | #????????????????????? | | ???######## ## ##????????????????????? | | ??????????## #?????????????????????? | | ???????????#### # ###d #????????????????????? | | ??????????????# ### #?# #????????????????????? | | ??????????????# #?# ##? #????????????????????? | | ?????????????? #? #?? ##????????????????????? | | ??????????????###? ?## ##?????????????????????? | | ????????????????? ??## #??????????????????????? | | ????????????????? ???# #??????????????????????? | | ???????????????? #??# ??????????????????????? | | ????????????????? ??# #??????????????????????? | | ????????????????? ??? ???????????????????????? | | ????????????????? ??? ???????????????????????? | | ??????????????????# ???